bitfinex/quotes_ETHUSD_20250523
["timestamp","ask_amount","ask_price","bid_price","bid_amount"]
[1747982315422,0.01527492,2661.9,2661.8,37.82885626]
[1747982315623,0.01527492,2661.9,2661.8,16.21]
[1747982315828,0.01527492,2661.9,2661.8,45.329]
[1747982315998,0.01527492,2661.9,2661.8,34.072]
[1747982316199,0.01527492,2661.9,2661.8,37.82202344]
[1747982317814,0.01527492,2661.9,2661.8,41.5788797]
[1747982318013,0.01527492,2661.9,2661.8,42.1288797]
[1747982318243,0.01527492,2661.9,2661.8,43.6328797]
[1747982319241,0.01527492,2661.9,2661.8,51.13002344]
[1747982319549,0.01527492,2661.9,2661.8,54.3368797]
[1747982319726,0.01527492,2661.9,2661.8,54.8868797]
[1747982320042,0.00830338,2661.9,2661.8,54.8868797]
[1747982320506,0.00830338,2661.9,2661.8,54.8378797]
[1747982320705,0.00830338,2661.9,2661.8,45.824]
[1747982320943,0.00830338,2661.9,2661.8,49.58085626]
[1747982321511,0.00830338,2661.9,2661.8,38.32485626]
[1747982321711,0.00830338,2661.9,2661.8,49.57985626]
[1747982323540,0.00830338,2661.9,2661.8,20.51385626]
[1747982323724,0.00830338,2661.9,2661.8,52.00494113]
[1747982324236,0.00830338,2661.9,2661.8,22.39094113]
[1747982324438,0.00830338,2661.9,2661.8,51.45494113]
[1747982325781,0.00830338,2661.9,2661.8,22.39094113]
[1747982325965,0.00830338,2661.9,2661.8,51.45494113]
[1747982326340,0.00830338,2661.9,2661.8,2.42708487]
[1747982326532,1.6075,2661.7,2660.8,17.809]
[1747982326878,3.75778696,2661.2,2660.8,17.809]
[1747982327086,1.6075,2661.7,2660.8,17.809]
[1747982327244,5.364536,2661.7,2660.9,11.254]
[1747982327450,3.75790871,2661.1,2660.9,11.254]
[1747982327669,3.75790871,2661.1,2660.8,17.809]
[1747982327862,3.75775243,2661.2,2660.8,29.063]
[1747982328628,1.6075,2661.7,2660.9,0.55]
[1747982329070,0.00830338,2661.9,2661.4,3.75741347]
[1747982329229,0.00830338,2661.9,2661.5,34.018]
[1747982329635,0.00830338,2661.9,2661.5,37.77527651]
[1747982329882,0.00830338,2661.9,2661.5,37.77522783]
[1747982330170,0.00830338,2661.9,2661.6,11.255]
[1747982330579,0.00830338,2661.9,2661.8,3.75685626]
[1747982330873,0.00830338,2661.9,2661.6,11.255]
[1747982331171,0.00830338,2661.9,2661.6,15.01204594]
[1747982332580,0.00830338,2661.9,2661.7,3.75696286]
[1747982332879,0.00830338,2661.9,2661.6,11.255]
[1747982332880,0.00830338,2661.9,2661.8,3.75685626]
[1747982333783,0.00830338,2661.9,2661.7,3.75691612]
[1747982333946,0.00830338,2661.9,2661.6,4.30713687]
[1747982334148,0.00830338,2661.9,2661.8,32.82285626]
[1747982334798,0.02,2662.9,2662.1,1.6465]
[1747982334945,0.02,2662.9,2662.8,3.75544539]
[1747982335143,0.02,2662.9,2662.8,49.02844539]
[1747982335567,0.02,2662.9,2662.8,49.57844539]
[1747982335780,0.02,2662.9,2662.8,50.88809034]
[1747982335987,0.02,2662.9,2662.8,50.23652528]
[1747982336848,0.02,2662.9,2662.8,51.39881979]
[1747982337057,0.02,2662.9,2662.8,22.33281979]
[1747982337259,0.02,2662.9,2662.8,50.74725473]
[1747982338065,0.02,2662.9,2662.4,0.65156506]
[1747982338364,0.02,2662.9,2662.8,37.76744539]
[1747982338700,0.02,2662.9,2662.8,49.57044539]
[1747982339276,0.01440136,2662.9,2662.8,49.57044539]
[1747982340198,0.01440136,2662.9,2662.8,57.57044539]
[1747982341400,0.02,2663.9,2663.7,3.7540926]
[1747982341565,0.02,2663.9,2663.8,45.26]
[1747982341899,0.02,2663.9,2663.8,45.258]
[1747982342202,0.02,2663.9,2663.8,16.202]
[1747982342402,3.77389466,2663.9,2663.8,16.202]
[1747982342607,4.31367413,2663.9,2663.8,34.007]
[1747982344087,3.77389466,2663.9,2663.8,34.007]
[1747982345109,0.02,2663.9,2663.8,34.007]
[1747982345467,0.01344974,2663.9,2663.8,34.007]
[1747982347699,0.01344974,2663.9,2663.8,38.37093398]
[1747982347913,0.01344974,2663.9,2663.8,37.76103558]
[1747982349486,0.01344974,2663.9,2663.8,46.31103558]
[1747982349709,0.01344974,2663.9,2663.8,46.92093398]
[1747982350904,0.01344974,2663.9,2663.8,48.50493398]
[1747982351118,0.01344974,2663.9,2663.8,59.69893398]
[1747982351603,0.01344974,2663.9,2663.8,30.69993398]
[1747982351788,0.01344974,2663.9,2663.8,59.69893398]
[1747982352615,0.01344974,2663.9,2663.8,51.69893398]
[1747982352796,0.01344974,2663.9,2663.8,59.69893398]
[1747982353435,0.01344974,2663.9,2663.8,59.69693398]
[1747982354229,0.01344974,2663.9,2663.8,59.69593398]
[1747982354800,0.01344974,2663.9,2663.8,30.69993398]
[1747982354999,0.01344974,2663.9,2663.8,59.69593398]
[1747982355400,0.01344974,2663.9,2663.8,62.78799095]
[1747982355697,0.02,2664.9,2663.9,0.55]
[1747982355903,0.02,2664.9,2664.5,2.89546037]
[1747982356109,3.7725822,2664.9,2664.1,3.753594]
[1747982356305,3.75269012,2664.8,2664.3,2.89546037]
[1747982356540,0.02,2664.9,2664.3,2.89546037]
[1747982356738,3.7533058,2664.4,2663.8,22.85144267]
[1747982357039,1.6647,2664.4,2663.9,35.03302269]
[1747982357635,3.75367329,2664.1,2664.0,28.994]
[1747982358341,5.41831285,2664.1,2664.0,33.943]
[1747982358895,13.41831285,2664.1,2664.0,16.194]
[1747982359094,13.41831285,2664.1,2664.0,33.943]
[1747982359675,1.6647,2664.1,2664.0,33.943]
[1747982359873,0.02,2664.9,2664.0,33.943]
[1747982360042,1.5821,2664.8,2664.4,6.64863543]
[1747982360244,1.5821,2664.8,2664.5,11.246]
[1747982360457,3.75279174,2664.7,2664.4,2.89546037]
[1747982360659,3.7529085,2664.6,2664.5,28.996]
[1747982360832,3.75282008,2664.7,2664.5,28.996]
[1747982361235,1.5821,2664.8,2664.5,28.996]
[1747982361972,5.33473424,2664.8,2664.5,28.996]
[1747982362270,3.75278141,2664.7,2664.5,28.996]
[1747982362486,5.33474647,2664.8,2664.5,28.996]
[1747982362651,3.75276766,2664.7,2664.5,28.996]
[1747982362856,9.5821,2664.8,2664.5,28.996]
[1747982363073,3.75276766,2664.7,2664.5,28.996]
[1747982363409,11.75276766,2664.7,2664.6,28.994]
[1747982363736,3.75276766,2664.7,2664.6,28.994]
[1747982364255,9.5821,2664.8,2664.3,2.89546037]
[1747982364456,1.5821,2664.8,2664.6,28.994]
[1747982364639,1.5821,2664.8,2664.6,31.88946037]
[1747982365167,0.02,2664.9,2664.6,31.88946037]
[1747982365743,3.77249624,2664.9,2664.7,28.994]
[1747982365956,0.02,2664.9,2664.7,28.994]
[1747982366376,0.02,2664.9,2664.7,32.74673999]
[1747982366675,0.02,2664.9,2664.7,28.994]
[1747982367132,0.02,2664.9,2664.8,11.245]
[1747982367966,0.02,2664.9,2664.6,6.64828891]
[1747982368155,0.02,2664.9,2664.8,28.994]
[1747982368545,0.02,2664.9,2664.8,32.74662683]
[1747982368755,0.02,2664.9,2664.8,33.29662683]
[1747982371433,0.02,2665.9,2665.1,0.55]
[1747982371636,0.02,2665.9,2665.5,2.89546037]
[1747982371883,0.02,2665.9,2665.6,28.989]
[1747982372275,0.02,2665.9,2665.7,3.75132699]
[1747982372885,0.02,2665.9,2665.8,17.746]
[1747982373838,0.02,2665.9,2665.8,28.989]
[1747982374036,0.02,2665.9,2665.2,19.94300308]
[1747982374037,5.3462007,2665.8,2665.2,22.83849645]
[1747982374359,3.75136618,2665.7,2665.3,17.744]
[1747982374569,3.75141055,2665.7,2665.3,17.744]
[1747982374876,3.75164134,2665.5,2665.2,19.08646037]
[1747982375047,3.75150409,2665.6,2665.2,19.08646037]
[1747982375247,5.28898209,2665.4,2665.3,17.744]
[1747982375451,1.5372,2665.4,2665.3,28.986]
[1747982378777,1.5372,2665.4,2665.3,32.73792286]
[1747982378938,1.5903,2665.8,2665.3,28.986]
[1747982379254,5.34160199,2665.8,2665.3,28.986]
[1747982379875,9.5903,2665.8,2665.4,3.75177246]
[1747982380181,1.5903,2665.8,2665.5,3.75163633]
[1747982380344,1.5903,2665.8,2665.5,6.64699588]
[1747982381582,1.5903,2665.8,2665.5,2.89546037]
[1747982382194,1.5903,2665.8,2665.5,6.64708224]
[1747982382357,1.5903,2665.8,2665.6,3.75147006]
[1747982382552,0.02,2665.9,2665.7,3.75133676]
[1747982382779,0.02,2665.9,2665.5,2.89546037]
[1747982382953,3.75121914,2665.8,2665.6,11.241]
[1747982383555,3.77111786,2665.9,2665.6,11.241]
[1747982383756,0.02,2665.9,2665.6,11.241]
[1747982385174,0.02,2665.9,2665.6,14.99249074]
[1747982385336,0.02,2665.9,2665.7,3.75135147]
[1747982385541,0.01301746,2665.9,2665.6,13.40498015]
[1747982386073,0.01301746,2665.9,2665.8,3.75121914]
[1747982386464,0.01301746,2665.9,2665.7,3.75131241]
[1747982386659,0.01301746,2665.9,2665.7,3.75135986]
[1747982386863,0.01301746,2665.9,2665.8,2.89546037]
[1747982387066,0.01301746,2665.9,2665.8,6.64667951]
[1747982387254,0.01301746,2665.9,2665.8,31.82246037]
[1747982388052,0.01301746,2665.9,2665.8,17.687]
[1747982389093,0.01301746,2665.9,2665.8,28.927]
[1747982389714,0.01301746,2665.9,2665.7,3.75131472]
[1747982389894,0.01301746,2665.9,2665.8,17.687]
[1747982390389,0.01301746,2665.9,2665.8,21.43821914]
[1747982390697,0.01301746,2665.9,2665.8,17.687]
[1747982391964,0.00777305,2665.9,2665.8,17.687]
[1747982393270,0.00777305,2665.9,2665.8,22.04811754]
[1747982394094,0.00777305,2665.9,2665.8,18.2968984]
[1747982394365,0.00777305,2665.9,2665.8,22.04811754]
[1747982395006,0.00777305,2665.9,2665.8,17.686]
[1747982395192,0.00777305,2665.9,2665.8,24.33267951]
[1747982395503,0.00777305,2665.9,2665.8,25.98237951]
[1747982396361,0.00777305,2665.9,2665.8,37.77137951]
[1747982396561,0.00777305,2665.9,2665.8,38.33045304]
[1747982398408,0.02,2666.9,2666.5,3.7501037]
[1747982398584,0.02,2666.9,2666.7,2.89546037]
[1747982400084,0.02,2666.9,2666.6,45.106]
[1747982400281,0.02,2666.9,2666.6,16.183]
[1747982400486,0.02,2666.9,2666.7,28.922]
[1747982401208,3.7498125,2666.8,2666.7,28.922]
[1747982401414,3.74995312,2666.7,2666.6,16.183]
[1747982401564,4.69383953,2666.8,2666.6,45.104]
[1747982401979,0.94397826,2666.8,2666.6,33.866]
[1747982402179,4.69379076,2666.8,2666.7,11.237]
[1747982402390,0.94397826,2666.8,2666.7,11.237]
[1747982402596,3.76972933,2666.9,2666.7,11.237]
[1747982402822,3.7498125,2666.8,2666.7,11.237]
[1747982403122,3.74995312,2666.7,2666.6,27.42]
[1747982403324,3.74995312,2666.7,2666.6,45.103]
[1747982404616,3.74565632,2666.7,2666.6,45.103]
[1747982405181,3.74565632,2666.7,2666.6,33.866]
[1747982405387,6.06740399,2666.7,2666.6,33.866]
[1747982405600,14.06740399,2666.7,2666.6,33.866]
[1747982405823,14.06740399,2666.7,2666.6,16.183]
[1747982406285,14.06740399,2666.7,2666.1,17.682]
[1747982406286,1.5012,2666.5,2666.1,17.682]
[1747982406623,3.75078564,2666.2,2666.1,17.682]
[1747982406978,5.25147102,2666.5,2666.1,17.682]
[1747982407179,3.75060069,2666.3,2666.1,17.682]
[1747982407395,3.75065636,2666.2,2666.1,17.682]
[1747982407939,3.75079704,2666.1,2666.0,0.3]
[1747982408102,3.75079704,2666.1,2666.0,29.219]
[1747982408497,3.75068965,2666.2,2666.0,29.219]
[1747982409015,3.75079704,2666.1,2666.0,29.219]
[1747982409995,3.75079704,2666.1,2666.0,0.3]
[1747982410208,4.50094246,2666.1,2666.0,17.982]
[1747982411036,4.49588317,2666.1,2666.0,17.982]
[1747982411535,14.10408317,2666.1,2666.0,0.3]
[1747982411919,14.65408317,2666.1,2666.0,0.3]
[1747982415165,25.89308317,2666.1,2666.0,0.3]
[1747982415325,3.75277783,2664.7,2664.4,4.42496037]
[1747982415530,3.7527398,2664.8,2664.5,17.616]
[1747982415765,1.6494,2665.0,2664.6,28.855]
[1747982415925,1.6494,2665.0,2664.4,4.42496037]
[1747982416124,3.7529085,2664.6,2664.5,28.855]
[1747982416340,3.75292106,2664.6,2664.5,17.619]
[1747982416537,3.7529085,2664.6,2664.3,16.184]
[1747982416742,1.6494,2665.0,2664.4,31.75446037]
[1747982416926,12.30079704,2666.1,2664.8,2.89546037]
[1747982417126,3.75214165,2665.2,2664.9,11.24]
[1747982417362,3.75214165,2665.2,2665.0,17.619]
[1747982417565,3.75220442,2665.1,2665.0,17.619]
[1747982418229,3.75220442,2665.1,2665.0,28.859]
[1747982418839,3.7521034,2665.2,2665.0,28.859]
[1747982419066,3.75192286,2665.3,2665.0,28.859]
[1747982419266,3.75211115,2665.2,2665.0,28.859]
[1747982419442,3.75220442,2665.1,2665.0,28.859]
[1747982420034,3.75211531,2665.2,2665.0,28.859]
[1747982420943,3.75200012,2665.3,2665.0,28.859]
[1747982421158,3.75200012,2665.3,2665.0,31.75446037]
[1747982421342,3.75220442,2665.1,2665.0,31.75446037]
[1747982421757,3.7523708,2665.0,2664.7,2.89546037]
[1747982421961,3.75224322,2665.1,2664.8,28.86]
[1747982422171,3.75224322,2665.1,2664.7,2.89546037]
[1747982422383,3.75224322,2665.1,2664.9,28.86]
[1747982422591,3.75208146,2665.2,2664.9,28.86]
[1747982422796,3.75220559,2665.1,2664.9,28.86]
[1747982422992,3.75234521,2665.0,2664.9,17.619]
[1747982423291,3.75234521,2665.0,2664.9,28.86]
[1747982423498,12.12137669,2665.0,2664.9,17.62]
[1747982424653,11.75234521,2665.0,2664.9,17.62]
[1747982425392,1.5811,2665.1,2664.9,17.621]
[1747982425570,11.75234521,2665.0,2664.9,17.621]
[1747982429277,3.75276766,2664.7,2664.6,2.89546037]
[1747982429604,3.75276766,2664.7,2664.6,31.75946037]
[1747982429770,3.74826573,2664.7,2664.6,31.75946037]
[1747982431602,3.75276766,2664.7,2664.6,31.75946037]
[1747982433803,3.75276766,2664.7,2664.6,31.76146037]
[1747982436162,3.7451427,2664.7,2664.6,31.76146037]
[1747982437809,3.7451427,2664.7,2664.6,30.39744879]
[1747982440024,3.75271593,2664.8,2664.6,30.39744879]
[1747982440318,3.75276766,2664.7,2664.6,30.39744879]
[1747982441707,3.75276766,2664.7,2664.6,1.53144879]
[1747982441894,3.75276766,2664.7,2664.6,30.31644879]
[1747982442503,3.74569406,2664.7,2664.6,30.31644879]
[1747982444941,3.74569406,2664.7,2664.6,19.07344879]
[1747982445135,3.74569406,2664.7,2664.6,30.31744879]
[1747982445539,3.74569406,2664.7,2664.6,19.07444879]
[1747982445898,4.65007722,2664.7,2664.6,17.543]
[1747982446267,12.65007722,2664.7,2664.6,17.543]
[1747982446595,3.7529085,2664.6,2663.6,1.71761702]
[1747982446796,3.75403558,2663.8,2663.7,17.543]
[1747982447633,5.27202286,2663.9,2663.7,19.07444879]
[1747982447937,1.5181,2664.3,2663.7,19.07444879]
[1747982448134,13.2710085,2664.6,2664.2,1.53144879]
[1747982448439,3.75319021,2664.4,2664.3,17.543]
[1747982448601,11.75319021,2664.4,2664.3,17.543]
[1747982451842,8.0,2664.2,2663.2,0.52407353]
[1747982451998,3.75431746,2663.6,2663.5,1.53144879]
[1747982452946,3.75459938,2663.4,2663.3,19.07544879]
[1747982453124,3.75459938,2663.4,2663.3,30.32044879]
[1747982453715,1.5646,2663.8,2663.3,30.32044879]
[1747982453917,3.75440198,2663.6,2663.3,30.32044879]
[1747982454128,3.75440198,2663.6,2663.5,1.53144879]
[1747982455430,3.75445841,2663.5,2663.4,27.44]
[1747982455603,11.75445841,2663.5,2663.4,44.987]
[1747982455799,11.75445841,2663.5,2663.4,16.195]
[1747982456040,11.75445841,2663.5,2663.4,33.742]
[1747982458603,13.41385841,2663.5,2663.4,16.195]
[1747982458804,14.96474445,2663.5,2663.4,16.195]
[1747982461151,6.55,2663.9,2663.4,16.195]
[1747982461152,3.75419467,2663.7,2663.4,16.195]
[1747982461370,3.75391694,2663.9,2663.5,1.53144879]
[1747982461575,3.75425526,2663.7,2663.6,11.248]
[1747982461734,11.75425526,2663.7,2663.6,11.248]
[1747982462332,3.75431746,2663.6,2663.4,16.195]
[1747982462646,5.26065841,2663.5,2663.4,16.195]
[1747982462848,5.26065841,2663.5,2663.4,33.746]
[1747982463045,13.81065841,2663.5,2663.4,16.195]
[1747982463368,11.75488134,2663.2,2663.1,17.571]
[1747982466568,11.75488134,2663.2,2663.1,19.10244879]
[1747982467356,11.75488134,2663.2,2663.1,0.02]
[1747982467577,11.75488134,2663.2,2663.1,28.822]
[1747982467751,13.30584425,2663.2,2663.1,0.02]
[1747982467954,15.51914425,2663.2,2663.1,0.02]
[1747982468155,14.96914425,2663.2,2663.1,0.02]
[1747982468439,13.41818134,2663.2,2663.1,0.02]
[1747982469872,11.75488134,2663.2,2663.1,0.02]
[1747982470555,1.6449,2663.5,2663.1,12.80144879]
[1747982470758,11.75473372,2663.4,2663.3,1.53144879]
[1747982470974,3.75473372,2663.4,2663.3,1.53144879]
[1747982471293,3.75459938,2663.4,2663.3,1.53144879]
[1747982474671,3.75488134,2663.2,2663.1,1.55144879]
[1747982474871,3.75488134,2663.2,2663.1,12.80144879]
[1747982475184,3.754556,2663.5,2663.1,12.80144879]
[1747982475482,3.754556,2663.5,2663.4,1.53144879]
[1747982476677,3.75478542,2663.3,2663.2,1.53144879]
[1747982477578,3.75478542,2663.3,2663.2,12.78144879]
[1747982479475,3.7546596,2663.4,2663.2,12.78144879]
[1747982479985,3.75474035,2663.3,2663.2,28.98144879]
[1747982480389,0.96544,2663.8,2663.2,28.98144879]
[1747982480789,3.75469489,2663.4,2663.2,28.98144879]
[1747982481486,3.7541222,2663.8,2663.3,1.5986]
[1747982481689,1.566,2664.3,2663.7,1.53144879]
[1747982481886,3.75350193,2664.2,2664.1,1.53144879]
[1747982482188,0.37535019,2664.2,2664.1,18.98344879]
[1747982482353,7.5149,2664.6,2664.1,18.98344879]
[1747982482552,8.0,2664.5,2664.2,16.2]
[1747982482754,11.75333108,2664.3,2664.2,16.2]
[1747982483571,11.75333108,2664.3,2664.2,27.45]
[1747982485100,3.75333108,2664.3,2664.2,27.45]
[1747982485266,12.50398321,2664.3,2664.2,16.2]
[1747982485471,14.06578321,2664.3,2664.2,33.652]
[1747982486190,14.61578321,2664.3,2664.2,33.652]
[1747982486409,3.75474035,2663.3,2663.2,16.198]
[1747982486555,3.75474035,2663.3,2663.2,44.896]
[1747982488363,1.4958,2664.0,2663.2,44.896]
[1747982488699,3.75439766,2663.6,2663.5,2.8989884]
[1747982488904,3.75439766,2663.6,2663.5,14.1479884]
[1747982490111,3.7546313,2663.4,2663.3,2.8989884]
[1747982490397,3.7546313,2663.4,2663.3,20.3489884]
[1747982491104,3.7545058,2663.5,2663.3,31.5979884]
[1747982491303,8.0,2664.2,2663.3,31.5979884]
[1747982491551,3.75412234,2663.8,2663.6,2.8989884]
[1747982491693,3.75496402,2663.2,2663.1,2.8989884]
[1747982491894,3.75496402,2663.2,2663.1,31.5979884]
[1747982492626,3.75513623,2663.1,2662.9,2.8989884]
[1747982492801,3.75513623,2663.1,2663.0,28.699]
[1747982493604,3.75429864,2663.7,2663.0,31.88159884]
[1747982493790,9.4405,2664.1,2663.2,2.8989884]
[1747982493995,3.75449431,2663.5,2663.2,2.8989884]
[1747982494189,3.75449431,2663.5,2663.3,0.28989884]
[1747982494618,3.7546289,2663.4,2663.2,2.8989884]
[1747982494939,3.75516334,2663.0,2662.9,3.1269884]
[1747982495089,3.75516334,2663.0,2662.9,20.5779884]
[1747982495293,3.75516334,2663.0,2662.9,36.7769884]
[1747982495800,3.75516334,2663.0,2662.9,48.0259884]
[1747982496208,3.75516334,2663.0,2662.9,19.3259884]
[1747982496412,3.75516334,2663.0,2662.9,48.0259884]
[1747982497023,3.75516334,2663.0,2662.9,47.7979884]
[1747982497404,1.4235,2663.6,2662.9,47.7979884]
[1747982497606,3.75514035,2663.1,2662.9,47.7979884]
[1747982497912,3.75454641,2663.5,2662.9,47.7979884]
[1747982498130,3.75459938,2663.4,2663.3,2.8989884]
[1747982498787,3.75459938,2663.4,2663.3,14.1479884]
[1747982499230,3.75459938,2663.4,2663.3,11.249]
[1747982499414,3.75459938,2663.4,2662.9,33.65]
[1747982499415,3.75516334,2663.0,2662.9,27.448]
[1747982499706,3.75516334,2663.0,2662.9,33.65]
[1747982499922,3.75516334,2663.0,2662.9,44.899]
[1747982501255,3.75516334,2663.0,2662.9,33.65]
[1747982501395,3.75516334,2663.0,2662.9,44.899]
[1747982503211,3.75516334,2663.0,2662.9,33.651]
[1747982503415,4.5061826,2663.0,2662.9,44.9]
[1747982503816,3.75516334,2663.0,2662.9,44.9]
[1747982505800,3.75483823,2663.3,2662.9,44.9]
[1747982506014,3.75486579,2663.3,2663.2,2.8989884]
[1747982507099,3.75516334,2663.0,2662.9,19.0979884]
[1747982507456,3.75516334,2663.0,2662.9,47.6929884]
[1747982507599,3.75506547,2663.1,2662.9,47.6929884]
[1747982508005,3.75516334,2663.0,2662.9,47.6929884]
[1747982508337,8.0,2663.5,2662.9,47.6929884]
[1747982508498,3.75496366,2663.2,2662.9,47.6929884]
[1747982509426,3.75468116,2663.4,2663.0,0.228]
[1747982509630,5.17407154,2663.8,2663.2,2.8989884]
[1747982509830,3.75487516,2663.3,2663.2,2.8989884]
[1747982511649,3.75474035,2663.3,2663.2,2.8989884]
[1747982512143,1.42,2663.8,2663.2,2.8989884]
[1747982512339,3.75417652,2663.7,2663.6,2.8989884]
[1747982512543,3.75417652,2663.7,2663.6,28.594]
[1747982515474,17.7841833,2665.4,2663.6,34.3523884]
[1747982515475,1.3992,2664.4,2663.6,34.3523884]
[1747982515654,1.3992,2664.4,2664.0,2.8989884]
[1747982515822,3.75361285,2664.1,2664.0,2.8989884]
[1747982516028,3.75361285,2664.1,2664.0,30.3469884]
[1747982516469,3.75361285,2664.1,2664.0,27.448]
[1747982516843,4.50432215,2664.1,2664.0,16.199]
[1747982517168,13.91342215,2664.1,2664.0,33.542]
[1747982517541,14.46342215,2664.1,2664.0,33.542]
[1747982517768,13.91342215,2664.1,2664.0,33.542]
[1747982522251,5.16271285,2664.1,2664.0,33.542]
[1747982522445,3.75361285,2664.1,2664.0,33.542]
[1747982522889,3.75361285,2664.1,2664.0,44.791]
[1747982523285,11.75361285,2664.1,2664.0,44.791]
[1747982524369,11.75361285,2664.1,2664.0,16.199]
[1747982524680,13.43472215,2664.1,2664.0,33.541]
[1747982525495,3.75361285,2664.1,2664.0,35.07393613]
[1747982528393,1.4,2664.4,2664.0,46.32093613]
[1747982528547,3.75361285,2664.1,2664.0,44.788]
[1747982528750,3.75361285,2664.1,2664.0,46.32093613]
[1747982529174,3.75361285,2664.1,2664.0,17.73193613]
[1747982529377,3.75361285,2664.1,2664.0,46.32093613]
[1747982531110,3.75361285,2664.1,2664.0,33.539]
[1747982531317,4.64082218,2664.1,2664.0,44.786]
[1747982532705,3.75361285,2664.1,2664.0,44.786]
[1747982532876,3.75361285,2664.1,2664.0,46.31893613]
[1747982533917,11.75361285,2664.1,2664.0,16.199]
[1747982534093,13.16501285,2664.1,2664.0,33.539]
[1747982534294,14.85686218,2664.1,2664.0,33.539]
[1747982536419,13.16501285,2664.1,2664.0,33.539]
[1747982536711,11.75361285,2664.1,2664.0,33.539]
[1747982540718,12.30361285,2664.1,2664.0,16.199]
[1747982540898,12.30361285,2664.1,2664.0,33.429]
[1747982541287,11.75361285,2664.1,2664.0,33.429]
[1747982541506,13.43303218,2664.1,2664.0,33.429]
[1747982542089,14.83313218,2664.1,2664.0,16.199]
[1747982542290,14.83313218,2664.1,2664.0,33.43]
[1747982542501,13.13048365,2663.2,2662.6,1.19354349]
[1747982542699,13.68108643,2662.7,2662.6,1.19354349]
[1747982542925,3.75629178,2662.2,2661.9,1.49192936]
[1747982543127,13.88303578,2662.2,2661.9,1.49192936]
[1747982543312,14.43303578,2662.2,2661.9,1.49192936]
[1747982543518,15.96612087,2662.2,2661.9,1.49192936]
[1747982543712,3.75770329,2661.2,2661.1,3.6153078]
[1747982543930,24.84450329,2661.2,2661.1,3.6153078]
[1747982545217,28.79350329,2661.2,2661.1,3.6153078]
[1747982545424,28.79350329,2661.2,2661.1,2.1927078]
[1747982545596,28.79350329,2661.2,2661.1,0.7701078]
[1747982545796,32.33921854,2661.2,2661.1,0.7701078]
[1747982545992,32.33921854,2661.2,2661.1,0.48832656]
[1747982546498,13.64738571,2661.0,2660.4,4.57400327]
[1747982546799,17.39740915,2661.0,2660.4,4.57400327]
[1747982547017,31.55650694,2661.0,2660.4,4.57400327]
[1747982547631,17.39740915,2661.0,2660.4,4.57400327]
[1747982547932,24.90038571,2661.0,2660.4,4.57400327]
[1747982548295,27.8064835,2661.0,2660.4,4.57400327]
[1747982548502,5.09738571,2661.0,2660.4,21.81800327]
[1747982549930,3.75798571,2661.0,2660.4,21.81800327]
[1747982551345,4.30798571,2661.0,2660.5,17.247]
[1747982551640,7.55833773,2661.0,2660.4,4.57400327]
[1747982552638,7.55621931,2661.0,2660.4,4.57400327]
[1747982553342,11.75840944,2660.7,2660.6,0.81827582]
[1747982553542,13.31007677,2660.7,2660.6,0.81827582]
[1747982556911,11.75840944,2660.7,2660.6,0.81827582]
[1747982557115,11.75840944,2660.7,2660.6,18.06827582]
[1747982557334,11.75840944,2660.7,2660.6,0.81827582]
[1747982558543,13.08120944,2660.7,2660.6,0.81827582]
[1747982561644,11.75883325,2660.4,2660.3,17.252]
[1747982561965,11.75883325,2660.4,2660.3,18.5445]
[1747982562761,3.75940807,2660.0,2658.9,3.76092294]
[1747982562965,3.75940807,2660.0,2659.4,3.760156]
[1747982563148,3.7594656,2660.0,2659.5,0.3760156]
[1747982563332,11.75873332,2660.5,2659.5,0.3760156]
[1747982563533,3.7593804,2660.1,2659.4,3.76016447]
[1747982563734,3.7593804,2660.1,2659.5,3.75996535]
[1747982563923,3.7593804,2660.1,2659.6,28.517]
[1747982564123,3.75910466,2660.3,2659.6,32.27694612]
[1747982564347,3.75927345,2660.1,2659.6,28.517]
[1747982564545,11.75873278,2660.5,2659.7,3.22770495]
[1747982564724,3.75968117,2659.8,2659.7,3.22770495]
[1747982565138,3.7596042,2659.9,2659.7,19.44670495]
[1747982565535,3.75944135,2660.0,2659.8,1.3128]
[1747982565871,8.0,2660.6,2659.8,1.69850115]
[1747982566052,3.75911961,2660.2,2660.0,2.90673791]
[1747982566223,3.75911961,2660.2,2660.1,11.263]
[1747982566627,3.75925717,2660.1,2660.0,2.90673791]
[1747982566830,3.75925717,2660.1,2660.0,31.32373791]
[1747982567353,3.75917775,2660.2,2660.0,34.55144286]
[1747982568188,3.75925717,2660.1,2660.0,31.32373791]
[1747982568467,3.75925717,2660.1,2660.0,17.153]
[1747982568673,3.75925717,2660.1,2660.0,28.417]
[1747982568965,3.75953983,2659.9,2659.8,1.3128]
[1747982569267,3.75953983,2659.9,2659.8,18.4658]
[1747982569954,3.75953983,2659.9,2659.8,17.153]
[1747982573371,8.0,2660.1,2659.8,20.05973791]
[1747982573573,3.75911585,2660.2,2659.9,1.2949]
[1747982573774,3.75925717,2660.1,2660.0,11.264]
[1747982574456,3.75869197,2660.5,2660.0,11.264]
[1747982574657,4.19358759,2660.7,2660.4,2.90673791]
[1747982574880,4.19358759,2660.7,2660.6,1.2338]
[1747982575585,3.7585507,2660.6,2660.5,28.418]
[1747982578890,11.7585507,2660.6,2660.5,17.153]
[1747982579049,12.93440577,2660.6,2660.5,17.153]
[1747982579451,3.75939849,2660.0,2659.9,2.90673791]
[1747982579784,3.75939849,2660.0,2659.9,31.32273791]
[1747982579971,3.75939849,2660.0,2659.9,17.153]
[1747982580149,3.75939849,2660.0,2659.9,28.416]
[1747982581457,6.0,2661.1,2660.0,3.75935619]
[1747982581654,0.58691107,2661.3,2660.1,0.03759148]
[1747982581855,11.75789966,2661.1,2660.2,1.3805]
[1747982582054,3.75877646,2660.5,2660.3,1.3805]
[1747982582292,3.75869197,2660.5,2660.4,28.417]
[1747982582494,3.75861183,2660.6,2660.4,28.417]
[1747982582664,3.75798571,2661.0,2660.4,31.39675]
[1747982582997,3.75867251,2660.6,2660.4,28.417]
[1747982583193,3.75869197,2660.5,2660.4,28.417]
[1747982583357,3.75838231,2660.8,2660.4,28.417]
[1747982583556,3.75855617,2660.6,2660.4,28.417]